fUST/lending_fUST_20260425
["ID","MTS","AMOUNT","RATE_DAILY","PERIOD"]
[421116347,1777083032276,-89.22873577,9.954e-05,2]
[421116350,1777083032300,-110.215542,9.954e-05,2]
[421116352,1777083032310,-815.12077296,9.998e-05,2]
[421116418,1777083038544,-384.87922704,9.998e-05,2]
[421116419,1777083038556,-195.58316958,9.999e-05,2]
[421116422,1777083038705,-104.41683042,9.999e-05,2]
[421116423,1777083038716,-300.0,9.999e-05,2]
[421116424,1777083038728,-300.0,9.999e-05,2]
[421116425,1777083038740,-300.0,9.999e-05,2]
[421116426,1777083038751,-551.02339795,9.999e-05,2]
[421116427,1777083038761,-526.6870743,9.999e-05,2]
[421116428,1777083038771,-4245.09078166,0.0001,2]
[421116429,1777083038781,-10417.16707377,0.0001,2]
[421116430,1777083038790,-2770.38840769,0.0001,2]
[421116431,1777083038803,-6570.6265687,0.0001,2]
[421116432,1777083038816,-8330.81243826,0.0001,2]
[421116433,1777083038827,-10351.21751461,0.0001,2]
[421116434,1777083038838,-663.14976003,0.0001,2]
[421116435,1777083038848,-1458.46797617,0.0001,2]
[421116436,1777083038859,-50000.0,0.00010054,2]
[421116437,1777083038870,-6294.0,0.00010056,5]
[421116438,1777083038882,-201.87,0.00010063,2]
[421116439,1777083038894,-308.5680543,0.00010155,2]
[421116440,1777083038906,-300.0,0.00010256,2]
[421116441,1777083038918,-300.0,0.00010256,2]
[421116442,1777083038928,-300.0,0.00010256,2]
[421116443,1777083038941,-300.0,0.00010256,2]
[421116444,1777083038953,-300.0,0.00010256,2]
[421116445,1777083038963,-300.0,0.00010256,2]
[421116446,1777083038973,-300.0,0.00010256,2]
[421116447,1777083038983,-300.0,0.00010256,2]
[421116448,1777083038994,-300.0,0.00010256,2]
[421116449,1777083039005,-300.0,0.00010256,2]
[421116450,1777083039016,-300.0,0.00010256,2]
[421116451,1777083039029,-300.0,0.00010256,2]
[421116452,1777083039040,-300.0,0.00010256,2]
[421116453,1777083039050,-300.0,0.00010256,2]
[421116454,1777083039061,-300.0,0.00010256,2]
[421116455,1777083039071,-252.34,0.00010375,2]
[421116456,1777083039082,-250.0,0.00010685,2]
[421116457,1777083039093,-250.0,0.00010685,2]
[421116458,1777083039103,-250.0,0.00010685,2]
[421116459,1777083039114,-605.65,0.00010686,2]
[421116460,1777083039124,-163.54315146,0.000109,2]
[421116461,1777083039134,-171.78339638,0.000109,2]
[421116462,1777083039144,-162.380719,0.000109,2]
[421116463,1777083039155,-537.6845,0.000109,2]
[421116464,1777083039165,-453.01421207,0.000109,2]
[421116465,1777083039176,-537.6845,0.000109,2]
[421116466,1777083039186,-151.42763528,0.000109,2]
[421116467,1777083039196,-2150.738,0.000109,2]
[421116468,1777083039206,-600.0,0.00010944,2]
[421116469,1777083039217,-557.5788265,0.00010955,2]
[421116470,1777083039227,-500.0,0.00010959,2]
[421116471,1777083039237,-500.0,0.00010959,2]
[421116472,1777083039246,-500.0,0.00010959,2]
[421116473,1777083039256,-500.0,0.00010959,2]
[421116474,1777083039266,-500.0,0.00010959,2]
[421116475,1777083039276,-500.0,0.00010959,2]
[421116476,1777083039286,-500.0,0.00010959,2]
[421116477,1777083039296,-500.0,0.00010959,2]
[421116478,1777083039307,-500.0,0.00010959,2]
[421116479,1777083039317,-500.0,0.00010959,2]
[421116480,1777083039327,-500.0,0.00010959,2]
[421116481,1777083039338,-500.0,0.00010959,2]
[421116482,1777083039350,-500.0,0.00010959,2]
[421116483,1777083039361,-328.4546399,0.00010959,2]
[421116484,1777083039372,-500.0,0.00010959,2]
[421116485,1777083039383,-450.0,0.00010959,2]
[421116486,1777083039395,-1680.0,0.00010998,2]
[421116487,1777083039405,-407.0,0.00010999,2]
[421116488,1777083039416,-420.0,0.00010999,2]
[421116489,1777083039427,-420.0,0.00010999,2]
[421116490,1777083039437,-420.0,0.00010999,2]
[421116491,1777083039448,-578.20924308,0.0001101,2]
[421116492,1777083039458,-599.60298507,0.00011065,2]
[421116493,1777083039469,-621.78829552,0.0001112,2]
[421116494,1777083039481,-644.79446246,0.00011175,2]
[421116495,1777083039492,-502.49171886,0.0001123,2]
[421116496,1777083039503,-2000.0,0.00011233,2]
[421116497,1777083039516,-2000.0,0.00011233,2]
[421116498,1777083039526,-2000.0,0.00011233,2]
[421116499,1777083039536,-2000.0,0.00011233,2]
[421116500,1777083039547,-2000.0,0.00011233,2]
[421116501,1777083039557,-2000.0,0.00011233,2]
[421116502,1777083039567,-2000.0,0.00011233,2]
[421116503,1777083039578,-2000.0,0.00011233,2]
[421116504,1777083039588,-2000.0,0.00011233,2]
[421116505,1777083039598,-2000.0,0.00011233,2]
[421116506,1777083039609,-2000.0,0.00011233,2]
[421116507,1777083039619,-2000.0,0.00011233,2]
[421116508,1777083039630,-2000.0,0.00011233,2]
[421116509,1777083039641,-2000.0,0.00011233,2]
[421116510,1777083039652,-2000.0,0.00011233,2]
[421116511,1777083039663,-2000.0,0.00011233,2]
[421116512,1777083039673,-2000.0,0.00011233,2]
[421116513,1777083039684,-2000.0,0.00011233,2]
[421116514,1777083039694,-2000.0,0.00011233,2]
[421116515,1777083039705,-2000.0,0.00011233,2]
[421116516,1777083039715,-2000.0,0.00011233,2]
[421116517,1777083039726,-2000.0,0.00011233,2]
[421116518,1777083039737,-2000.0,0.00011233,2]
[421116519,1777083039749,-557.5788265,0.00011448,2]
[421116520,1777083039760,-2230.315306,0.00011448,2]
[421116521,1777083039771,-500.0,0.00011679,2]
[421116522,1777083039781,-1409.0,0.00011691,2]
[421116523,1777083039792,-2211.0,0.00011691,2]
[421116524,1777083039802,-646.0,0.00011691,2]
[421116525,1777083039813,-442.0,0.00011691,2]
[421116526,1777083039823,-740.0,0.00011691,2]
[421116527,1777083039833,-185.0,0.00011691,2]
[421116528,1777083039844,-417.41204465,0.00011834,2]
[421116529,1777083039854,-170.91,0.00011929,2]
[421116530,1777083039865,-2000.0,0.00011945,2]
[421116531,1777083039875,-2000.0,0.00011945,2]
[421116532,1777083039885,-2000.0,0.00011945,2]
[421116533,1777083039895,-2000.0,0.00011945,2]
[421116534,1777083039905,-2000.0,0.00011945,2]
[421116535,1777083039916,-2000.0,0.00011945,2]
[421116536,1777083039926,-2000.0,0.00011945,2]
[421116537,1777083039937,-2000.0,0.00011945,2]
[421116538,1777083039948,-2000.0,0.00011945,2]
[421116539,1777083039958,-2000.0,0.00011945,2]
[421116540,1777083039968,-2000.0,0.00011945,2]
[421116541,1777083039978,-2000.0,0.00011945,2]
[421116542,1777083039988,-2000.0,0.00011945,2]
[421116543,1777083039999,-2000.0,0.00011945,2]
[421116545,1777083040009,-2000.0,0.00011945,2]
[421116547,1777083040019,-2000.0,0.00011945,2]
[421116549,1777083040031,-2000.0,0.00011945,2]
[421116550,1777083040041,-2000.0,0.00011945,2]
[421116551,1777083040051,-2000.0,0.00011945,2]
[421116552,1777083040062,-2000.0,0.00011945,2]
[421116553,1777083040072,-2000.0,0.00011945,2]
[421116554,1777083040083,-2000.0,0.00011945,2]
[421116555,1777083040093,-2000.0,0.00011945,2]
[421116556,1777083040103,-153.046,0.00011961,2]
[421116557,1777083040116,-150.08,0.00011961,2]
[421116558,1777083040127,-160.61629029,0.00011996,2]
[421116559,1777083040138,-578.20924308,0.00011996,2]
[421116560,1777083040148,-2312.83697232,0.00011996,2]
[421116561,1777083040159,-720.0,0.00012038,2]
[421116563,1777083040169,-2351.0,0.00012098,2]
[421116565,1777083040179,-587.0,0.00012099,2]
[421116566,1777083040189,-289.0,0.00012099,2]
[421116567,1777083040200,-256.36,0.00012213,2]
[421116568,1777083040210,-893.0,0.00012246,2]
[421116569,1777083040220,-893.0,0.00012246,2]
[421116570,1777083040230,-893.0,0.00012246,2]
[421116571,1777083040240,-893.0,0.00012246,2]
[421116572,1777083040249,-893.0,0.00012246,2]
[421116573,1777083040259,-893.0,0.00012246,2]
[421116574,1777083040269,-893.0,0.00012246,2]
[421116575,1777083040279,-893.0,0.00012246,2]
[421116576,1777083040289,-893.0,0.00012246,2]
[421116577,1777083040299,-893.0,0.00012246,2]
[421116578,1777083040310,-893.0,0.00012246,2]
[421116579,1777083040320,-893.0,0.00012246,2]
[421116580,1777083040331,-893.0,0.00012246,2]
[421116581,1777083040341,-893.0,0.00012246,2]
[421116582,1777083040351,-893.0,0.00012246,2]
[421116583,1777083040361,-893.0,0.00012246,2]
[421116584,1777083040371,-893.0,0.00012246,2]
[421116585,1777083040381,-893.0,0.00012246,2]
[421116586,1777083040391,-893.0,0.00012246,2]
[421116587,1777083040402,-893.0,0.00012246,2]
[421116588,1777083040415,-893.0,0.00012246,2]
[421116589,1777083040427,-500.0,0.00012246,2]
[421116590,1777083040437,-500.0,0.00012246,2]
[421116591,1777083040448,-500.0,0.00012246,2]
[421116592,1777083040458,-500.0,0.00012246,2]
[421116593,1777083040468,-500.0,0.00012246,2]
[421116594,1777083040478,-500.0,0.00012246,2]
[421116595,1777083040488,-893.0,0.00012246,2]
[421116596,1777083040498,-500.0,0.00012246,2]
[421116597,1777083040509,-500.0,0.00012246,2]
[421116598,1777083040521,-500.0,0.00012246,2]
[421116599,1777083040532,-500.0,0.00012246,2]
[421116600,1777083040542,-500.0,0.00012246,2]
[421116601,1777083040553,-500.0,0.00012246,2]
[421116602,1777083040564,-500.0,0.00012246,2]
[421116603,1777083040575,-500.0,0.00012246,2]
[421116604,1777083040585,-500.0,0.00012246,2]
[421116605,1777083040596,-893.0,0.00012246,2]
[421116606,1777083040607,-500.0,0.00012246,2]
[421116607,1777083040617,-500.0,0.00012246,2]
[421116608,1777083040628,-215.39542908,0.00012246,2]
[421116609,1777083040638,-911.0,0.00012246,2]
[421116610,1777083040648,-152.24698871,0.00012269,2]
[421116611,1777083040658,-341.82,0.00012496,2]
[421116612,1777083040669,-264.86,0.00012496,2]
[421116613,1777083040679,-599.60298507,0.00012544,2]
[421116614,1777083040690,-2398.4119403,0.00012544,2]
[421116615,1777083040701,-151.0,0.00012743,2]
[421116616,1777083040711,-427.28,0.0001278,2]
[421116617,1777083040721,-331.07,0.0001278,2]
[421116618,1777083040731,-250.33812543,0.00012896,2]
[421116619,1777083040741,-1025.18259048,0.000129,2]
[421116620,1777083040751,-1025.18259041,0.000129,2]
[421116621,1777083040761,-1025.18259041,0.000129,2]
[421116622,1777083040772,-439.017,0.00012987,2]
[421116623,1777083040781,-187.299,0.00012987,2]
[421116624,1777083040791,-512.73,0.00013064,2]
[421116625,1777083040802,-397.29,0.00013064,2]
[421116626,1777083040812,-263.36816051,0.00013092,2]
[421116627,1777083040822,-2487.15318209,0.00013092,2]
[421116628,1777083040832,-153.19,0.00013108,2]
[421116629,1777083040842,-864.0,0.00013242,2]
[421116630,1777083040852,-823.0,0.00013309,2]
[421116631,1777083040863,-598.19,0.00013348,2]
[421116632,1777083040874,-463.5,0.00013348,2]
[421116634,1777083040884,-4120.29890098,0.00013425,2]
[421116636,1777083040895,-2995.045443,0.00013425,2]
[421116637,1777083040905,-151.0,0.00013449,2]
[421116638,1777083040915,-151.0,0.00013449,2]
[421116639,1777083040926,-1791.9096877,0.00013564,2]
[421116640,1777083040936,-600.0,0.0001359,2]
[421116641,1777083040947,-600.0,0.0001359,2]
[421116642,1777083040957,-600.0,0.0001359,2]
[421116643,1777083040967,-606.59940349,0.0001359,2]
[421116644,1777083040978,-3529.24470495,0.00013596,2]
[421116645,1777083040988,-600.0,0.00013604,2]
[421116646,1777083040999,-2000.0,0.00013615,2]
[421116647,1777083041009,-2000.0,0.00013615,2]
[421116648,1777083041019,-2000.0,0.00013615,2]
[421116649,1777083041030,-2000.0,0.00013615,2]
[421116650,1777083041040,-2000.0,0.00013615,2]
[421116651,1777083041396,-2000.0,0.00013615,2]
[421116652,1777083041413,-2000.0,0.00013615,2]
[421116653,1777083041426,-2000.0,0.00013615,2]
[421116654,1777083041435,-2000.0,0.00013615,2]
[421116655,1777083041444,-2000.0,0.00013615,2]
[421116656,1777083041453,-2000.0,0.00013615,2]
[421116657,1777083041463,-958.0,0.00013615,2]
[421116658,1777083041472,-4174.193378,0.00013615,2]
[421116659,1777083041481,-2579.17784983,0.0001364,2]
[421116660,1777083041490,-500.0,0.00013673,2]
[421116661,1777083041499,-500.0,0.00013673,2]
[421116662,1777083041508,-505.26812908,0.00013673,2]
[421116663,1777083041517,-500.0,0.00013673,2]
[421116664,1777083041527,-500.0,0.00013673,2]
[421116665,1777083041536,-500.0,0.00013673,2]
[421116666,1777083041546,-500.0,0.00013673,2]
[421116667,1777083041555,-500.0,0.00013673,2]
[421116668,1777083041566,-500.0,0.00013673,2]
[421116669,1777083041575,-500.0,0.00013673,2]
[421116670,1777083041584,-209.13751922,0.00013673,2]
[421116671,1777083041594,-500.0,0.00013673,2]
[421116672,1777083041603,-210.10958984,0.00013673,2]
[421116673,1777083041612,-192.026887,0.00013673,2]
[421116674,1777083041622,-272.04938782,0.00013673,2]
[421116675,1777083041632,-500.0,0.00013673,2]
[421116676,1777083041641,-500.0,0.00013673,2]
[421116677,1777083041651,-500.0,0.00013673,2]
[421116678,1777083041660,-500.0,0.00013673,2]
[421116679,1777083041669,-536.98237164,0.00013673,2]
[421116680,1777083041679,-500.0,0.00013673,2]
[421116681,1777083041688,-500.0,0.00013673,2]
[421116682,1777083041698,-500.0,0.00013673,2]
[421116683,1777083041707,-160.35515038,0.00013673,2]
[421116684,1777083041717,-500.0,0.00013673,2]
[421116685,1777083041726,-502.87421826,0.00013673,2]
[421116686,1777083041735,-500.0,0.00013673,2]
[421116687,1777083041746,-500.0,0.00013673,2]
[421116688,1777083041755,-500.0,0.00013673,2]
[421116689,1777083041764,-160.0,0.00013694,2]
[421116690,1777083041774,-284.473663,0.00013694,2]
[421116691,1777083041783,-408.947326,0.00013694,2]
[421116692,1777083041793,-42344.18345428,0.00013696,2]
[421116693,1777083041802,-288.102,0.00013698,2]
[421116694,1777083041811,-179.9640072,0.00013699,2]
[421116695,1777083041820,-151.0,0.00013699,2]
[421116696,1777083041829,-151.0,0.00013699,2]
[421116697,1777083041839,-151.0,0.00013699,2]
[421116698,1777083041848,-151.0,0.00013699,2]
[421116699,1777083041858,-249.5149,0.00013699,2]
[421116700,1777083041867,-151.0,0.00013699,2]
[421116701,1777083041877,-151.0,0.00013699,2]
[421116702,1777083041886,-151.0,0.00013699,2]
[421116703,1777083041895,-151.0,0.00013699,2]
[421116704,1777083041904,-151.0,0.00013699,2]
[421116705,1777083041913,-151.0,0.00013699,2]
[421116706,1777083041923,-151.0,0.00013699,2]
[421116707,1777083041932,-253.77197,0.00013699,2]
[421116708,1777083041941,-231.164416,0.00013699,2]
[421116709,1777083041951,-231.164416,0.00013699,2]
[421116710,1777083041960,-231.164416,0.00013699,2]
[421116711,1777083041969,-193.584211,0.00013699,2]
[421116712,1777083041979,-231.164416,0.00013699,2]
[421116713,1777083041988,-193.584211,0.00013699,2]
[421116714,1777083041998,-193.584211,0.00013699,2]
[421116715,1777083042007,-193.584211,0.00013699,2]
[421116716,1777083042016,-292.277786,0.00013699,2]
[421116717,1777083042025,-292.277786,0.00013699,2]
[421116718,1777083042034,-292.277786,0.00013699,2]
[421116719,1777083042044,-292.277786,0.00013699,2]
[421116720,1777083042053,-667.74227,0.00013699,2]
[421116721,1777083042063,-667.74227,0.00013699,2]
[421116722,1777083042072,-151.0,0.00013699,2]
[421116723,1777083042081,-151.0,0.00013699,2]
[421116724,1777083042090,-667.74227,0.00013699,2]
[421116725,1777083042099,-667.74227,0.00013699,2]
[421116726,1777083042108,-219.469755,0.00013699,2]
[421116727,1777083042117,-219.469755,0.00013699,2]
[421116728,1777083042127,-219.469755,0.00013699,2]
[421116729,1777083042135,-219.469755,0.00013699,2]
[421116730,1777083042145,-1514.26643,0.00013699,2]
[421116731,1777083042154,-1514.26643,0.00013699,2]
[421116732,1777083042163,-1514.26643,0.00013699,2]
[421116733,1777083042173,-1514.26643,0.00013699,2]
[421116734,1777083042183,-804.177038,0.00013699,2]
[421116735,1777083042192,-804.177038,0.00013699,2]
[421116736,1777083042201,-1437.801168,0.00013699,2]
[421116737,1777083042211,-804.177038,0.00013699,2]
[421116738,1777083042220,-233.256374,0.00013699,2]
[421116739,1777083042229,-804.177038,0.00013699,2]
[421116740,1777083042238,-233.256374,0.00013699,2]
[421116741,1777083042248,-1437.801168,0.00013699,2]
[421116742,1777083042257,-233.256374,0.00013699,2]
[421116743,1777083042266,-1437.801168,0.00013699,2]
[421116744,1777083042275,-233.256374,0.00013699,2]
[421116745,1777083042285,-242.661255,0.00013699,2]
[421116746,1777083042294,-3979.988983,0.00013699,2]
[421116747,1777083042303,-242.661255,0.00013699,2]
[421116748,1777083042312,-179.825365,0.00013699,2]
[421116749,1777083042322,-3979.988983,0.00013699,2]
[421116750,1777083042331,-242.661255,0.00013699,2]
[421116751,1777083042341,-1437.801168,0.00013699,2]
[421116752,1777083042350,-179.825365,0.00013699,2]
[421116753,1777083042360,-3979.988983,0.00013699,2]
[421116754,1777083042369,-242.661255,0.00013699,2]
[421116755,1777083042379,-179.825365,0.00013699,2]
[421116756,1777083042388,-3979.988983,0.00013699,2]
[421116757,1777083042398,-179.825365,0.00013699,2]
[421116758,1777083042407,-813.43133,0.00013699,2]
[421116759,1777083042417,-813.43133,0.00013699,2]
[421116760,1777083042427,-813.43133,0.00013699,2]
[421116761,1777083042436,-813.43133,0.00013699,2]
[421116762,1777083042445,-610.997817,0.00013699,2]
[421116763,1777083042455,-610.997817,0.00013699,2]
[421116764,1777083042464,-475.634597,0.00013699,2]
[421116765,1777083042473,-610.997817,0.00013699,2]
[421116766,1777083042483,-475.634597,0.00013699,2]
[421116767,1777083042492,-1133.517359,0.00013699,2]
[421116768,1777083042501,-610.997817,0.00013699,2]
[421116769,1777083042510,-475.634597,0.00013699,2]
[421116770,1777083042519,-1133.517359,0.00013699,2]
[421116771,1777083042529,-475.634597,0.00013699,2]
[421116772,1777083042539,-1133.517359,0.00013699,2]
[421116773,1777083042548,-151.0,0.00013699,2]
[421116774,1777083042558,-1133.517359,0.00013699,2]
[421116775,1777083042567,-257.487975,0.00013699,2]
[421116776,1777083042577,-151.0,0.00013699,2]
[421116777,1777083042587,-257.487975,0.00013699,2]
[421116778,1777083042596,-151.0,0.00013699,2]
[421116779,1777083042606,-257.487975,0.00013699,2]
[421116780,1777083042615,-167.223894,0.00013699,2]
[421116781,1777083042626,-257.487975,0.00013699,2]
[421116782,1777083042636,-277.951523,0.00013699,2]
[421116783,1777083042645,-277.951523,0.00013699,2]
[421116784,1777083042654,-277.951523,0.00013699,2]
[421116785,1777083042665,-277.951523,0.00013699,2]
[421116786,1777083042676,-774.308277,0.00013699,2]
[421116787,1777083042685,-151.0,0.00013699,2]
[421116788,1777083042695,-774.308277,0.00013699,2]
[421116789,1777083042705,-205.397138,0.00013699,2]
[421116790,1777083042714,-774.308277,0.00013699,2]
[421116791,1777083042724,-9918.957665,0.00013699,2]
[421116792,1777083042734,-774.308277,0.00013699,2]
[421116793,1777083042743,-9918.957665,0.00013699,2]
[421116795,1777083042753,-9918.957665,0.00013699,2]
[421116797,1777083042763,-9918.957665,0.00013699,2]
[421116798,1777083042772,-489.155793,0.00013699,2]
[421116801,1777083042782,-489.155793,0.00013699,2]
[421116804,1777083042791,-489.155793,0.00013699,2]
[421116807,1777083042801,-489.155793,0.00013699,2]
[421116808,1777083042811,-5521.942073,0.00013699,2]
[421116810,1777083042820,-703.9885,0.00013699,2]
[421116811,1777083042829,-5521.942073,0.00013699,2]
[421116812,1777083042839,-703.9885,0.00013699,2]
[421116815,1777083042848,-5521.942073,0.00013699,2]
[421116817,1777083042857,-703.9885,0.00013699,2]
[421116819,1777083042866,-5521.942073,0.00013699,2]
[421116821,1777083042875,-703.9885,0.00013699,2]
[421116823,1777083042884,-4884.01066,0.00013699,2]
[421116824,1777083042895,-4884.01066,0.00013699,2]
[421116827,1777083042904,-4884.01066,0.00013699,2]
[421116829,1777083042913,-2051.760027,0.00013699,2]
[421116830,1777083042923,-4884.01066,0.00013699,2]
[421116832,1777083042932,-2051.760027,0.00013699,2]
[421116833,1777083042942,-2051.760027,0.00013699,2]
[421116834,1777083042951,-693.693799,0.00013699,2]
[421116835,1777083042961,-827.208729,0.00013699,2]
[421116836,1777083042970,-2051.760027,0.00013699,2]
[421116838,1777083042979,-693.693799,0.00013699,2]
[421116840,1777083042989,-827.208729,0.00013699,2]
[421116841,1777083042999,-153.0,0.00013699,2]
[421116843,1777083043008,-153.0,0.00013699,2]
[421116845,1777083043017,-153.0,0.00013699,2]
[421116847,1777083043026,-153.0,0.00013699,2]
[421116848,1777083043035,-153.0,0.00013699,2]
[421116852,1777083043045,-153.0,0.00013699,2]
[421116854,1777083043054,-153.0,0.00013699,2]
[421116856,1777083043063,-153.0,0.00013699,2]
[421116858,1777083043072,-153.0,0.00013699,2]
[421116859,1777083043082,-153.0,0.00013699,2]
[421116860,1777083043091,-153.0,0.00013699,2]
[421116861,1777083043100,-153.0,0.00013699,2]
[421116862,1777083043109,-153.0,0.00013699,2]
[421116863,1777083043120,-153.0,0.00013699,2]
[421116864,1777083043129,-153.0,0.00013699,2]
[421116865,1777083043139,-153.0,0.00013699,2]
[421116866,1777083043150,-208.1330895,0.00013699,2]
[421116867,1777083043160,-150.0,0.00013699,2]
[421116868,1777083043170,-200.0,0.00013699,2]
[421116869,1777083043180,-153.0,0.00013699,2]
[421116870,1777083043189,-153.0,0.00013699,2]
[421116871,1777083043199,-153.0,0.00013699,2]
[421116872,1777083043208,-153.0,0.00013699,2]
[421116873,1777083043218,-153.0,0.00013699,2]
[421116874,1777083043228,-153.0,0.00013699,2]
[421116875,1777083043237,-153.0,0.00013699,2]
[421116876,1777083043247,-153.0,0.00013699,2]
[421116877,1777083043258,-153.0,0.00013699,2]
[421116878,1777083043268,-153.0,0.00013699,2]
[421116879,1777083043279,-153.0,0.00013699,2]
[421116880,1777083043289,-153.0,0.00013699,2]
[421116881,1777083043298,-153.0,0.00013699,2]
[421116882,1777083043307,-153.0,0.00013699,2]
[421116883,1777083043317,-153.0,0.00013699,2]
[421116884,1777083043326,-153.0,0.00013699,2]
[421116885,1777083043336,-153.0,0.00013699,2]
[421116886,1777083043346,-153.0,0.00013699,2]
[421116887,1777083043356,-153.0,0.00013699,2]
[421116888,1777083043365,-153.0,0.00013699,2]
[421116889,1777083043374,-153.0,0.00013699,2]
[421116890,1777083043384,-153.0,0.00013699,2]
[421116891,1777083043393,-153.0,0.00013699,2]
[421116892,1777083043402,-153.0,0.00013699,2]
[421116893,1777083043412,-153.0,0.00013699,2]
[421116894,1777083043421,-153.0,0.00013699,2]
[421116895,1777083043430,-153.0,0.00013699,2]
[421116896,1777083043439,-153.0,0.00013699,2]
[421116897,1777083043449,-153.0,0.00013699,2]
[421116898,1777083043458,-153.0,0.00013699,2]
[421116899,1777083043468,-153.0,0.00013699,2]
[421116900,1777083043477,-153.0,0.00013699,2]
[421116901,1777083043487,-1000.0,0.00013699,2]
[421116902,1777083043496,-170.0352132,0.00013699,2]
[421116903,1777083043506,-318.7211235,0.00013699,2]
[421116904,1777083043515,-13019.6818489,0.00013699,2]
[421116905,1777083043524,-206.110763,0.00013699,2]
[421116906,1777083043534,-11355.008279,0.00013699,2]
[421116907,1777083043543,-151.0,0.00013699,2]
[421116908,1777083043552,-151.0,0.00013699,2]
[421116909,1777083043562,-151.0,0.00013699,2]
[421116910,1777083043571,-235.489602,0.00013699,2]
[421116911,1777083043580,-151.0,0.00013699,2]
[421116912,1777083043590,-151.0,0.00013699,2]
[421116913,1777083043599,-151.0,0.00013699,2]
[421116914,1777083043609,-242.416561,0.00013699,2]
[421116915,1777083043620,-183.159278,0.00013699,2]
[421116917,1777083043630,-295.24234588,0.00013699,2]
[421116918,1777083043641,-151.0,0.00013699,2]
[421116919,1777083043651,-151.0,0.00013699,2]
[421116920,1777083043661,-208.855185,0.00013699,2]
[421116921,1777083043670,-151.0,0.00013699,2]
[421116922,1777083043680,-151.0,0.00013699,2]
[421116923,1777083043690,-151.0,0.00013699,2]
[421116924,1777083043699,-151.0,0.00013699,2]
[421116925,1777083043709,-151.0,0.00013699,2]
[421116926,1777083043719,-151.0,0.00013699,2]
[421116927,1777083043728,-151.0,0.00013699,2]
[421116928,1777083043738,-151.0,0.00013699,2]
[421116929,1777083043748,-157.8,0.00013699,2]
[421116930,1777083043757,-259.254265,0.00013699,2]
[421116931,1777083043766,-259.254265,0.00013699,2]
[421116932,1777083043776,-259.254265,0.00013699,2]
[421116933,1777083043785,-259.254265,0.00013699,2]
[421116934,1777083043795,-259.254265,0.00013699,2]
[421116935,1777083043804,-259.254265,0.00013699,2]
[421116936,1777083043814,-259.254265,0.00013699,2]
[421116937,1777083043823,-259.254265,0.00013699,2]
[421116938,1777083043832,-259.254265,0.00013699,2]
[421116939,1777083043842,-259.254265,0.00013699,2]
[421116940,1777083043851,-259.254265,0.00013699,2]
[421116941,1777083043861,-259.254265,0.00013699,2]
[421116942,1777083043870,-282.574332,0.00013699,2]
[421116943,1777083043880,-282.574332,0.00013699,2]
[421116944,1777083043889,-282.574332,0.00013699,2]
[421116945,1777083043899,-282.574332,0.00013699,2]
[421116946,1777083043908,-282.574332,0.00013699,2]
[421116947,1777083043918,-282.574332,0.00013699,2]
[421116948,1777083043927,-282.574332,0.00013699,2]
[421116949,1777083043936,-282.574332,0.00013699,2]
[421116950,1777083043946,-282.574332,0.00013699,2]
[421116951,1777083043956,-282.574332,0.00013699,2]
[421116952,1777083043965,-282.574332,0.00013699,2]
[421116953,1777083043974,-151.0,0.00013699,2]
[421116954,1777083043984,-282.574332,0.00013699,2]